bitfinex/quotes_SOLUSD_20240621
["timestamp","ask_amount","ask_price","bid_price","bid_amount"]
[1718932289285,15.2797,133.42,133.36,45.0]
[1718932289486,15.2797,133.42,133.37,20.0]
[1718932292000,3.91176059,133.43,133.37,20.0]
[1718932294408,19.19146059,133.45,133.38,45.0]
[1718932294609,19.19146059,133.45,133.39,20.0]
[1718932295202,15.2797,133.45,133.39,20.0]
[1718932295705,32.79176059,133.44,133.39,20.0]
[1718932295890,32.79176059,133.44,133.33,20.0]
[1718932296095,3.91176059,133.43,133.33,20.0]
[1718932296794,3.91176059,133.43,133.34,0.17]
[1718932296996,3.91176059,133.43,133.34,45.51]
[1718932297197,3.91176059,133.44,133.35,20.0]
[1718932297516,3.91176059,133.43,133.36,45.0]
[1718932297699,3.91176059,133.43,133.37,20.0]
[1718932297899,3.91176059,133.44,133.37,20.0]
[1718932298412,30.0,133.39,133.37,20.0]
[1718932298606,30.0,133.39,133.38,45.0]
[1718932298800,30.0,133.39,133.38,65.0]
[1718932299895,30.0,133.4,133.38,65.0]
[1718932300116,30.0,133.4,133.39,20.0]
[1718932300319,30.0,133.4,133.39,65.0]
[1718932300532,30.0,133.4,133.39,65.51]
[1718932301016,19.19321492,133.49,133.39,65.51]
[1718932301199,19.19321492,133.49,133.4,45.51]
[1718932301404,19.19321492,133.49,133.41,20.0]
[1718932301720,28.37,133.51,133.41,20.0]
[1718932301721,3.91351492,133.51,133.43,6.069]
[1718932301926,3.91351492,133.51,133.44,65.0]
[1718932302112,30.0,133.45,133.44,65.0]
[1718932302700,3.91351492,133.51,133.44,65.0]
[1718932303008,28.37,133.51,133.44,65.0]
[1718932303325,4.25351492,133.5,133.44,20.0]
[1718932303632,30.0,133.45,133.44,20.0]
[1718932303799,30.0,133.45,133.4,20.0]
[1718932304510,30.0,133.44,133.4,20.0]
[1718932306031,30.0,133.44,133.39,20.0]
[1718932307520,30.0,133.44,133.37,20.0]
[1718932307928,0.51,133.43,133.37,20.0]
[1718932308133,30.0,133.41,133.33,20.0]
[1718932309139,30.0,133.41,133.34,45.0]
[1718932309323,30.0,133.41,133.35,20.0]
[1718932311825,15.2797,133.4,133.35,20.0]
[1718932312005,30.0,133.39,133.35,20.0]
[1718932318225,30.0,133.39,133.32,0.8388819]
[1718932318226,0.51,133.38,133.32,0.8388819]
[1718932318428,30.0,133.36,133.32,0.8388819]
[1718932326326,15.4497,133.35,133.32,0.8388819]
[1718932326550,30.34,133.34,133.32,0.8388819]
[1718932327644,30.0,133.34,133.32,0.8388819]
[1718932334558,15.2797,133.39,133.32,0.8388819]
[1718932336950,0.34,133.38,133.32,0.8388819]
[1718932337149,0.17,133.37,133.32,0.8388819]
[1718932337341,0.17,133.38,133.32,0.8388819]
[1718932337539,15.2797,133.39,133.32,0.8388819]
[1718932338047,30.0,133.33,133.32,0.8388819]
[1718932338633,30.0,133.33,133.32,45.8388819]
[1718932338838,30.0,133.33,133.32,66.0088819]
[1718932339737,15.2797,133.39,133.32,66.1788819]
[1718932339932,15.2797,133.39,133.33,20.0]
[1718932340139,6.4425,133.43,133.34,45.0]
[1718932340338,15.2797,133.42,133.35,20.0]
[1718932340635,15.2797,133.42,133.36,45.0]
[1718932340836,15.2797,133.42,133.37,20.0]
[1718932341737,15.2797,133.42,133.32,1.0088819]
[1718932341941,0.51,133.41,133.32,45.8388819]
[1718932342151,0.51,133.41,133.33,20.0]
[1718932342457,0.51,133.41,133.34,45.0]
[1718932342655,0.51,133.41,133.35,20.0]
[1718932342856,15.2797,133.42,133.35,20.0]
[1718932343236,15.2797,133.42,133.36,45.0]
[1718932343437,15.2797,133.42,133.37,20.0]
[1718932344864,15.2797,133.45,133.38,45.0]
[1718932345058,15.2797,133.45,133.39,20.0]
[1718932345246,43.6497,133.45,133.37,20.0]
[1718932345749,43.6497,133.45,133.33,20.0]
[1718932345952,0.51,133.44,133.33,20.0]
[1718932346660,0.51,133.44,133.34,45.0]
[1718932346836,0.51,133.44,133.35,20.0]
[1718932347040,0.51,133.44,133.36,45.0]
[1718932347242,0.51,133.44,133.37,20.0]
[1718932347453,0.17,133.44,133.37,20.0]
[1718932347643,15.2797,133.45,133.38,45.0]
[1718932347852,15.2797,133.45,133.39,20.0]
[1718932350153,15.2797,133.45,133.4,45.0]
[1718932350347,15.2797,133.45,133.41,20.0]
[1718932352061,0.17,133.44,133.32,23.1503819]
[1718932352254,0.51,133.44,133.32,23.1503819]
[1718932353265,14.03576816,133.44,133.32,23.1503819]
[1718932353479,14.03576816,133.44,133.33,65.51]
[1718932353668,14.03576659,133.44,133.33,65.17]
[1718932353877,14.03576659,133.44,133.33,65.0]
[1718932354354,6.4425,133.43,133.33,20.0]
[1718932354549,44.1597,133.42,133.33,20.0]
[1718932355262,13.52865068,133.41,133.33,20.0]
[1718932355459,0.34,133.4,133.33,20.0]
[1718932355857,0.34,133.4,133.34,45.0]
[1718932356058,0.34,133.4,133.35,20.0]
[1718932357365,0.17,133.39,133.32,0.8388819]
[1718932357572,15.2797,133.38,133.32,0.8388819]
[1718932357752,0.51,133.37,133.32,0.8388819]
[1718932358755,0.17,133.37,133.32,0.8388819]
[1718932358974,21.7222,133.38,133.32,0.8388819]
[1718932360767,35.25378059,133.38,133.32,0.8388819]
[1718932361163,21.7222,133.38,133.32,0.8388819]
[1718932361759,15.2797,133.38,133.32,0.8388819]
[1718932366262,0.51,133.37,133.32,0.8388819]
[1718932368259,15.2797,133.38,133.32,0.8388819]
[1718932368860,0.51,133.37,133.32,0.8388819]
[1718932369355,0.34,133.37,133.32,0.8388819]
[1718932369554,15.2797,133.38,133.32,0.8388819]
[1718932370973,38.69799819,133.42,133.32,0.8388819]
[1718932371181,53.97769819,133.42,133.32,0.8388819]
[1718932371888,21.7222,133.42,133.33,0.17]
[1718932372059,15.2797,133.42,133.33,6.579]
[1718932372266,15.2797,133.42,133.34,65.0]
[1718932376969,6.4425,133.4,133.34,20.0]
[1718932377174,6.4425,133.4,133.32,20.8388819]
[1718932377370,6.4425,133.4,133.33,20.0]
[1718932377575,6.4425,133.4,133.32,0.8388819]
[1718932379280,6.4425,133.4,133.32,45.8388819]
[1718932379480,6.4425,133.4,133.33,20.0]
[1718932379680,6.4425,133.4,133.34,45.0]
[1718932379885,6.4425,133.4,133.35,20.0]
[1718932380074,6.4425,133.4,133.36,45.0]
[1718932380277,6.4425,133.4,133.37,20.0]
[1718932380487,15.2797,133.42,133.37,20.0]
[1718932380894,28.37,133.39,133.32,0.8388819]
[1718932381196,0.34,133.38,133.32,0.8388819]
[1718932381402,0.17,133.37,133.32,0.8388819]
[1718932382486,15.2797,133.36,133.32,0.8388819]
[1718932385409,28.37,133.4,133.32,0.8388819]
[1718932385729,15.2797,133.4,133.33,0.17]
[1718932385885,28.80541103,133.44,133.33,23.06]
[1718932386080,15.2797,133.44,133.34,20.0]
[1718932386296,15.2797,133.44,133.35,45.51]
[1718932386523,15.2797,133.44,133.36,26.069]
[1718932386687,15.2797,133.44,133.37,45.0]
[1718932386998,15.2797,133.44,133.38,20.0]
[1718932387299,15.2797,133.44,133.39,45.0]
[1718932387608,15.2797,133.44,133.4,20.0]
[1718932388704,15.2797,133.47,133.41,45.0]
[1718932388897,15.2797,133.47,133.42,20.0]
[1718932389100,15.2797,133.47,133.43,45.0]
[1718932389298,15.2797,133.47,133.44,20.0]
[1718932389497,3.89159965,133.51,133.44,20.0]
[1718932389498,21.7222,133.51,133.44,20.0]
[1718932389809,21.7222,133.51,133.45,45.0]
[1718932390188,21.7222,133.51,133.46,20.0]
[1718932390393,15.2797,133.51,133.47,45.0]
[1718932390590,15.2797,133.51,133.48,20.0]
[1718932394690,15.2797,133.55,133.48,20.0]
[1718932394894,15.2797,133.55,133.49,45.0]
[1718932395107,15.2797,133.55,133.5,20.0]
[1718932395303,15.2797,133.55,133.51,45.0]
[1718932395509,15.2797,133.55,133.52,20.0]
[1718932396103,15.2797,133.55,133.45,20.0]
[1718932396319,15.2797,133.55,133.46,45.51]
[1718932396522,15.2797,133.55,133.47,20.0]
[1718932396727,15.2797,133.55,133.48,45.0]
[1718932396904,15.2797,133.55,133.49,20.0]
[1718932397397,15.2797,133.55,133.5,45.0]
[1718932397715,15.2797,133.55,133.51,20.0]
[1718932398312,15.2797,133.55,133.5,20.0]
[1718932398625,0.17,133.54,133.5,20.0]
[1718932398796,0.51,133.54,133.45,20.0]
[1718932399413,15.2797,133.55,133.45,20.0]
[1718932399799,15.2797,133.55,133.46,45.17]
[1718932400118,15.2797,133.55,133.47,20.0]
[1718932400303,15.2797,133.55,133.48,45.0]
[1718932400503,15.2797,133.55,133.49,20.0]
[1718932400808,15.2797,133.55,133.5,45.0]
[1718932401000,15.2797,133.55,133.51,20.0]
[1718932402611,6.4425,133.57,133.51,20.0]
[1718932402804,15.2797,133.58,133.52,45.0]
[1718932403000,15.2797,133.58,133.53,20.0]
[1718932403213,15.2797,133.58,133.54,45.0]
[1718932403420,15.2797,133.58,133.55,20.0]
[1718932408605,6.4425,133.6,133.55,20.0]
[1718932408801,15.2797,133.61,133.56,45.0]
[1718932409002,15.2797,133.61,133.57,20.0]
[1718932409698,15.2797,133.61,133.51,20.0]
[1718932409917,15.2797,133.61,133.52,45.0]
[1718932410140,0.51,133.6,133.53,20.0]
[1718932410334,0.51,133.6,133.54,45.0]
[1718932410629,0.51,133.6,133.55,20.0]
[1718932411013,15.2797,133.58,133.45,22.3115]
[1718932411207,0.17,133.57,133.46,20.0]
[1718932411406,0.34,133.57,133.46,20.0]
[1718932412328,0.17,133.57,133.47,45.17]
[1718932412629,0.51,133.57,133.48,0.34]
[1718932412811,0.51,133.57,133.48,20.34]
[1718932413013,0.51,133.57,133.49,45.0]
[1718932413215,0.51,133.57,133.5,20.0]
[1718932413427,0.51,133.57,133.51,45.0]
[1718932413624,0.51,133.57,133.52,20.0]
[1718932415011,0.51,133.57,133.45,22.3115]
[1718932415407,0.51,133.57,133.46,20.0]
[1718932416323,0.51,133.57,133.47,45.0]
[1718932416513,0.51,133.57,133.48,20.0]
[1718932416712,0.51,133.57,133.49,45.0]
[1718932416929,0.51,133.57,133.5,20.0]
[1718932419525,0.51,133.57,133.51,45.0]
[1718932419821,0.51,133.57,133.52,20.0]
[1718932421726,43.6197,133.58,133.52,20.0]
[1718932421928,15.2797,133.58,133.53,45.0]
[1718932422135,15.2797,133.58,133.54,20.0]
[1718932422334,15.2797,133.58,133.55,45.0]
[1718932422525,15.2797,133.58,133.56,20.0]
[1718932422837,15.2797,133.61,133.57,45.0]
[1718932423025,15.2797,133.65,133.58,20.0]
[1718932423222,15.2797,133.65,133.59,45.0]
[1718932423424,15.2797,133.65,133.6,20.0]
[1718932423728,15.2797,133.65,133.61,45.0]
[1718932423934,15.2797,133.68,133.62,20.0]
[1718932424124,11.67154967,133.72,133.62,20.0]
[1718932424125,23.10682737,133.72,133.63,45.0]
[1718932424318,15.2797,133.72,133.64,20.0]
[1718932424523,15.2797,133.72,133.65,45.0]
[1718932424822,15.2797,133.72,133.66,20.0]
[1718932425035,15.2797,133.72,133.67,45.0]
[1718932425257,25.11143255,133.76,133.68,20.0]
[1718932425544,15.2797,133.76,133.69,45.0]
[1718932425730,15.2797,133.76,133.7,20.0]
[1718932426860,15.2797,133.76,133.6,6.239]
[1718932426861,0.51,133.75,133.6,6.239]
[1718932427148,0.51,133.75,133.61,65.17]
[1718932428743,45.51,133.75,133.61,20.0]
[1718932429060,6.4425,133.74,133.6,6.069]
[1718932429261,36.8144223,133.72,133.6,6.069]
[1718932429472,15.7897,133.71,133.56,6.069]
[1718932430246,15.7897,133.71,133.57,65.0]
[1718932430561,15.7897,133.71,133.58,0.51]
[1718932431863,15.2797,133.71,133.58,0.51]
[1718932433358,0.17,133.7,133.58,0.51]
[1718932433550,0.51,133.7,133.58,0.51]
[1718932434567,0.51,133.7,133.59,15.2797]
[1718932434773,0.51,133.7,133.6,65.51]
[1718932436451,15.2797,133.71,133.6,88.06]
[1718932439362,0.17,133.7,133.6,20.0]
[1718932439549,0.51,133.7,133.6,20.0]
[1718932440651,0.51,133.7,133.61,45.0]
[1718932440854,0.51,133.7,133.62,20.0]
[1718932441052,0.51,133.7,133.63,45.0]
[1718932441256,15.2797,133.71,133.64,20.0]
[1718932441460,15.2797,133.71,133.65,45.0]
[1718932441767,15.2797,133.71,133.66,20.0]
[1718932441945,15.2797,133.71,133.67,45.0]
[1718932442763,15.2797,133.71,133.68,20.0]
[1718932442965,15.2797,133.71,133.69,45.0]
[1718932443146,15.2797,133.71,133.7,20.0]
[1718932443463,15.2797,133.71,133.7,65.0]
[1718932444457,15.4497,133.71,133.59,54.5822]
[1718932444653,15.4497,133.71,133.6,20.0]
[1718932445471,0.51,133.7,133.6,20.0]
[1718932446770,0.51,133.7,133.61,45.0]
[1718932446943,0.51,133.7,133.62,20.0]
[1718932447143,0.51,133.7,133.63,45.0]
[1718932447369,0.34,133.7,133.64,20.0]
[1718932447574,15.2797,133.71,133.65,45.0]
[1718932447773,15.2797,133.71,133.66,20.0]
[1718932447957,15.2797,133.71,133.67,45.0]
[1718932448274,15.2797,133.71,133.68,20.0]
[1718932448473,15.2797,133.71,133.69,45.0]
[1718932449047,6.4425,133.7,133.59,15.2797]
[1718932449276,15.2797,133.68,133.6,20.0]
[1718932449462,6.4425,133.66,133.57,20.0]
[1718932449770,0.34,133.65,133.52,6.069]
[1718932450069,0.17,133.64,133.55,15.2797]
[1718932450268,15.4497,133.64,133.52,6.069]
[1718932450475,0.34,133.63,133.52,6.069]
[1718932450850,15.2797,133.64,133.53,37.9997]
[1718932451045,0.17,133.63,133.53,15.4497]
[1718932451269,0.51,133.63,133.53,15.4497]
[1718932451468,0.51,133.63,133.52,6.069]
[1718932451770,0.51,133.63,133.53,15.2797]
[1718932452065,15.2797,133.64,133.53,15.2797]
[1718932452275,15.2797,133.64,133.54,65.0]
[1718932452458,15.2797,133.64,133.55,0.17]
[1718932452657,15.2797,133.64,133.55,0.34]
[1718932452873,15.2797,133.64,133.54,20.0]
[1718932453052,0.51,133.63,133.54,20.0]
[1718932453369,0.51,133.63,133.53,20.0]
[1718932453562,0.51,133.63,133.52,20.0]
[1718932454055,0.51,133.63,133.5,35.2797]
[1718932454691,0.51,133.63,133.51,0.17]
[1718932454848,21.7222,133.62,133.51,45.0]
[1718932455048,21.7222,133.62,133.52,20.0]
[1718932455049,0.51,133.61,133.52,20.0]
[1718932455270,0.51,133.61,133.53,45.0]
[1718932455466,0.51,133.61,133.54,20.0]
[1718932455652,0.51,133.61,133.55,45.0]
[1718932455854,15.2797,133.6,133.54,20.0]
[1718932456087,6.4425,133.58,133.54,20.0]
[1718932456287,15.2797,133.56,133.54,20.0]
[1718932456597,15.2797,133.56,133.46,21.3487]
[1718932457649,15.2797,133.56,133.46,88.9687]
[1718932457873,15.2797,133.56,133.47,87.62]
[1718932458285,15.2797,133.56,133.48,45.51]
[1718932458480,6.4425,133.58,133.49,87.62]
[1718932458789,6.4425,133.58,133.5,45.34]
[1718932458991,6.4425,133.58,133.51,20.0]
[1718932459190,6.4425,133.58,133.52,45.0]
[1718932459494,6.4425,133.58,133.53,20.0]
[1718932459678,6.4425,133.58,133.54,45.0]
[1718932459879,6.4425,133.58,133.55,20.0]
[1718932460086,6.4425,133.58,133.56,45.0]
[1718932460285,6.4425,133.58,133.55,20.0]
[1718932460588,6.4425,133.58,133.47,20.0]
[1718932460970,30.0,133.56,133.47,20.0]
[1718932461384,30.0,133.56,133.47,87.62]
[1718932461689,30.0,133.56,133.48,45.51]
[1718932461894,30.0,133.56,133.49,20.0]
[1718932462077,30.0,133.56,133.5,45.51]
[1718932462287,30.0,133.56,133.51,20.0]
[1718932462484,30.0,133.56,133.52,45.51]
[1718932462692,30.0,133.56,133.53,20.0]
[1718932462884,30.0,133.56,133.54,45.0]
[1718932463079,30.0,133.56,133.55,3.3334]
[1718932463301,30.17,133.56,133.53,20.0]
[1718932463690,30.17,133.56,133.43,45.07]
[1718932463998,0.17,133.55,133.43,67.62]
[1718932464189,36.9525,133.55,133.46,15.2797]
[1718932464571,36.9525,133.55,133.43,73.689]
[1718932464974,15.2797,133.54,133.46,45.51]
[1718932465178,30.0,133.53,133.46,45.51]
[1718932465386,30.0,133.53,133.47,20.0]
[1718932465591,30.0,133.53,133.48,45.0]
[1718932465794,30.0,133.53,133.49,20.0]
[1718932466002,30.0,133.53,133.5,45.0]
[1718932466170,30.0,133.53,133.51,20.0]
[1718932466493,30.0,133.53,133.52,45.0]
[1718932466669,30.0,133.53,133.52,65.0]
[1718932470883,15.2797,133.62,133.52,65.0]
[1718932471084,15.2797,133.62,133.53,20.0]
[1718932471386,15.2797,133.62,133.54,45.0]
[1718932471588,15.2797,133.62,133.55,20.0]
[1718932471791,15.2797,133.62,133.56,45.0]
[1718932471989,15.2797,133.62,133.57,20.0]
[1718932472306,15.2797,133.62,133.58,45.0]
[1718932472482,15.2797,133.62,133.59,20.0]
[1718932472888,15.2797,133.62,133.6,45.0]
[1718932473088,15.2797,133.62,133.61,20.0]
[1718932473305,15.2797,133.62,133.61,65.0]
[1718932473706,45.2797,133.62,133.61,65.0]
[1718932474394,45.4497,133.62,133.61,45.0]
[1718932474579,45.7897,133.62,133.61,45.0]
[1718932475692,45.2797,133.62,133.61,45.0]
[1718932476916,45.2797,133.62,133.61,65.0]
[1718932477209,30.0,133.62,133.61,65.0]
[1718932477505,6.4425,133.67,133.61,65.0]
[1718932477683,6.4425,133.67,133.62,65.0]
[1718932479087,0.51,133.66,133.53,6.069]
[1718932479500,0.51,133.66,133.54,20.0]
[1718932480594,0.34,133.66,133.54,20.0]
[1718932480787,30.0,133.62,133.54,20.0]
[1718932480985,6.4425,133.67,133.55,0.17]
[1718932481190,6.4425,133.67,133.56,16.2425]
[1718932481490,6.4425,133.67,133.57,65.51]
[1718932482909,6.4425,133.67,133.57,65.0]
[1718932483105,0.51,133.66,133.57,20.0]
[1718932483293,0.51,133.66,133.54,20.0]
[1718932484185,0.51,133.66,133.53,44.8615]
[1718932484402,0.51,133.66,133.54,0.17]
[1718932484603,0.51,133.66,133.54,45.51]
[1718932484815,6.4425,133.67,133.54,90.58]
[1718932484987,15.2797,133.68,133.54,90.58]
[1718932485182,15.2797,133.68,133.57,22.55]
[1718932485404,15.2797,133.68,133.58,133.13]
[1718932485706,6.4425,133.7,133.59,38.7925]
[1718932486004,15.2797,133.72,133.61,6.069]
[1718932486191,15.2797,133.72,133.62,20.51]
[1718932486507,15.2797,133.72,133.62,65.51]
[1718932486692,6.4425,133.74,133.62,133.13]
[1718932487710,6.4425,133.74,133.62,65.51]
[1718932488709,0.17,133.73,133.62,65.51]
[1718932489410,0.51,133.73,133.62,65.51]
[1718932489906,0.51,133.73,133.61,6.069]
[1718932491291,0.51,133.73,133.62,20.0]
[1718932491797,0.51,133.73,133.63,45.0]
[1718932491999,0.51,133.73,133.64,20.0]
[1718932492194,0.51,133.73,133.65,45.0]
[1718932492414,0.51,133.73,133.66,20.0]
[1718932492606,0.51,133.73,133.67,45.0]
[1718932492804,30.0,133.68,133.67,45.0]
[1718932493007,30.0,133.68,133.67,65.0]
[1718932497231,45.2797,133.68,133.67,65.0]
[1718932497630,15.2797,133.68,133.67,65.0]
[1718932498915,15.2797,133.72,133.67,65.0]
[1718932499105,0.51,133.71,133.67,65.0]
[1718932499507,0.51,133.71,133.68,20.0]
[1718932499711,0.34,133.71,133.69,45.0]
[1718932500028,6.4425,133.74,133.7,20.0]
[1718932500233,0.51,133.73,133.71,45.0]
[1718932500401,15.2797,133.75,133.71,45.0]
[1718932500607,274.26459599,133.78,133.72,20.0]
[1718932500815,270.3797,133.78,133.73,45.0]
[1718932501006,15.2797,133.78,133.74,20.0]
[1718932501220,15.2797,133.78,133.75,45.0]
[1718932502019,15.2797,133.78,133.76,20.0]
[1718932502731,15.2797,133.78,133.66,16.2425]
[1718932502905,15.2797,133.78,133.67,65.0]
[1718932503110,0.51,133.77,133.67,20.0]
[1718932503306,0.51,133.77,133.65,20.0]
[1718932503307,32.97,133.76,133.65,20.0]
[1718932503510,270.3797,133.74,133.63,20.0]
[1718932503710,21.7222,133.71,133.59,20.0]
[1718932503925,0.51,133.7,133.59,20.0]
[1718932504519,15.2797,133.67,133.55,20.0]
[1718932504717,6.4425,133.65,133.55,20.0]
[1718932505034,0.51,133.64,133.55,20.0]
[1718932505233,0.51,133.64,133.54,16.2425]
[1718932506128,0.51,133.64,133.55,20.0]
[1718932507411,15.2797,133.67,133.55,20.0]
[1718932507714,15.2797,133.67,133.56,0.17]
[1718932507909,6.4425,133.69,133.57,73.689]
[1718932508113,15.2797,133.71,133.59,16.2425]
[1718932508315,15.2797,133.71,133.6,65.51]
[1718932509634,0.17,133.7,133.6,65.51]
[1718932510732,15.2797,133.71,133.6,110.58]
[1718932510917,15.2797,133.74,133.62,22.55]
[1718932511120,15.2797,133.74,133.63,65.51]
[1718932511734,15.2797,133.74,133.63,65.17]
[1718932511906,15.2797,133.74,133.63,65.0]
[1718932512433,0.51,133.73,133.63,65.0]
[1718932514940,0.34,133.73,133.63,65.0]
[1718932515134,282.08169241,133.78,133.65,28.619]
[1718932515314,15.2797,133.78,133.66,65.34]
[1718932515514,15.2797,133.78,133.67,0.17]
[1718932516640,7.2813819,133.79,133.67,0.17]
[1718932516833,0.8388819,133.79,133.67,0.17]
[1718932517941,0.8388819,133.79,133.66,110.41]
[1718932517942,15.2797,133.77,133.66,20.0]
[1718932518235,0.34,133.76,133.65,6.069]
[1718932518626,0.17,133.75,133.65,6.069]
[1718932519333,0.17,133.75,133.66,20.0]
[1718932519930,0.17,133.75,133.67,45.0]
[1718932520132,6.6125,133.75,133.68,20.0]
[1718932520316,6.6125,133.75,133.66,20.0]
[1718932520317,0.34,133.74,133.66,20.0]
[1718932520634,15.2797,133.72,133.62,6.069]
[1718932520837,0.51,133.71,133.62,6.069]
[1718932521026,0.51,133.71,133.58,6.069]
[1718932521232,6.4425,133.7,133.58,6.069]
[1718932521419,0.51,133.69,133.58,6.069]
[1718932522439,4.38340052,133.69,133.59,20.0]
[1718932522622,0.51,133.69,133.59,20.0]
[1718932523135,0.51,133.69,133.6,45.0]
[1718932523333,0.51,133.69,133.61,20.0]
[1718932523525,0.51,133.69,133.62,45.0]
[1718932523719,0.51,133.69,133.63,20.0]
[1718932524233,4.38340052,133.69,133.59,20.0]
[1718932524621,4.04340052,133.69,133.59,20.0]
[1718932524827,0.17,133.68,133.59,20.0]
[1718932525026,0.34,133.69,133.59,20.0]
[1718932525720,0.34,133.69,133.6,45.0]
[1718932525925,0.34,133.69,133.61,20.0]
[1718932526124,0.34,133.69,133.62,45.0]
[1718932526336,0.34,133.69,133.63,20.0]
[1718932526530,0.34,133.69,133.64,45.0]
[1718932526731,0.34,133.69,133.65,20.0]
[1718932526932,0.34,133.69,133.66,45.0]
[1718932527134,0.34,133.69,133.67,20.0]
[1718932527345,0.17,133.68,133.67,20.0]
[1718932527543,15.2797,133.72,133.67,65.0]
[1718932527733,15.2797,133.72,133.67,20.0]
[1718932527933,15.2797,133.72,133.68,45.0]
[1718932528242,15.2797,133.72,133.69,20.0]
[1718932528446,15.2797,133.72,133.58,6.069]
[1718932528651,19.15310052,133.72,133.59,20.0]
[1718932529429,3.87340052,133.71,133.59,20.0]
[1718932529639,6.4425,133.69,133.59,20.0]
[1718932529858,0.51,133.68,133.57,20.0]
[1718932531242,0.51,133.68,133.58,45.0]
[1718932531445,0.51,133.68,133.59,20.34]
[1718932531743,6.4425,133.69,133.6,45.0]
[1718932531943,6.4425,133.69,133.61,20.0]
[1718932532147,15.2797,133.72,133.62,45.17]
[1718932532357,15.2797,133.72,133.63,20.0]
[1718932532730,15.2797,133.72,133.64,45.0]
[1718932532922,15.2797,133.72,133.65,20.0]
[1718932533128,15.2797,133.72,133.66,45.0]
[1718932533325,15.2797,133.72,133.67,20.0]
[1718932533527,15.2797,133.72,133.68,45.0]
[1718932533847,15.2797,133.72,133.69,20.0]
[1718932534052,258.97340052,133.75,133.7,45.0]
[1718932534230,25.59560052,133.76,133.71,20.0]
[1718932534433,21.7222,133.76,133.72,45.0]
[1718932534926,21.7222,133.76,133.73,20.0]
[1718932536236,0.34,133.75,133.73,20.0]
[1718932536436,0.17,133.74,133.73,20.0]
[1718932538145,0.34,133.75,133.73,20.0]
[1718932538744,0.17,133.74,133.73,20.0]
[1718932538949,0.17,133.74,133.73,65.0]
[1718932539143,0.17,133.74,133.73,20.0]
[1718932540462,0.17,133.74,133.63,37.9647]
[1718932540643,0.17,133.74,133.64,20.0]
[1718932540844,0.17,133.74,133.63,16.2425]
[1718932541034,0.34,133.75,133.63,83.8625]
[1718932541239,21.7222,133.76,133.63,83.8625]
[1718932541448,15.2797,133.76,133.65,22.55]